Cogmind - Beta 9 @@@ ROGUE MODE // 2019.10.22 @ 00:28:30 Player: BOBIT Result: Destroyed by Y-45 Defender with Beam Rifle Performance ------------- Evolutions (2) 1000 Regions Visited (6) 1200 Robots Destroyed (42) 210 Value Destroyed (1208) 1208 Prototype IDs (9) 180 Alien Tech Used (0) 0 Bonus (46) 46 TOTAL SCORE: 3844 Bonus ------- High Alert Combat Kills 46 Cogmind --------- Core Integrity 0/550 Matter 159/300 Energy 265/265 System Corruption 1% Temperature Cool (9) Location -8/Storage Parts ------- Power (2) Improved Ion Engine Propulsion (2) Aluminum Leg Aluminum Leg Utility (3) Structural Scanner Core Shielding Medium Reactive Plating Weapon (4) Beam Rifle Heavy Assault Rifle Flak Cannon Plasma Cutter Inventory (4) Reinforced Deuterium Engine Medium Reactive Plating Proton Missile Launcher Peak State ------------ Power Heavy Ion Engine Cooled Ion Engine Propulsion Light Treads Light Treads Utility Energy Filter Core Shielding Medium Reactive Plating Weapon Precision Beam Rifle Proton Missile Launcher Proton Missile Launcher Proton Missile Launcher Inventory Reinforced Deuterium Engine Light Fission Core Medium Reactive Plating Medium Reactive Plating [Rating: 34] Favorites ----------- Power Ion Engine Engine Ion Engine Power Core Light Nuclear Core Propulsion Light Treads Treads Light Treads Leg Aluminum Leg Wheel Wheel Hover Unit Aerolev Unit Utility Visual Processing Unit Device Sensor Array Storage Medium Battery Processor Visual Processing Unit Protection Medium Reactive Plating Weapon Medium Laser Energy Gun Medium Laser Ballistic Gun Assault Rifle Ballistic Cannon Flak Cannon Launcher Proton Missile Launcher Special Weapon Plasma Cutter Slashing Weapon Katana Build | -11 -10 -10 -10 -9 -8 -8 ------- Run | Scr Mat Min Exi Min Mat Sto Slots Evolved 4 | . . . . . 4 . Power 1 | . . . . . 1 . Propulsion . | . . . . . . . Utility 1 | . . . . . 1 . Weapon 2 | . . . . . 2 . Parts Attached 71 | 5 6 3 5 4 29 19 Power 12 | 1 . 3 1 1 3 3 Engine 11 | 1 . 3 1 1 2 3 Core 1 | . . . . . 1 . Reactor . | . . . . . . . Propulsion 19 | 2 . . 2 2 9 4 Treads 10 | . . . 2 . 6 2 Leg 6 | . . . . 2 2 2 Wheel 2 | 2 . . . . . . Hover 1 | . . . . . 1 . Flight . | . . . . . . . Utility 14 | . 4 . 1 . 7 2 Device 4 | . 2 . . . 1 1 Storage 3 | . . . 1 . 2 . Processor 1 | . 1 . . . . . Hackware . | . . . . . . . Protection 6 | . 1 . . . 4 1 Artifact . | . . . . . . . Weapon 26 | 2 2 . 1 1 10 10 Energy Gun 12 | 1 1 . 1 1 4 4 Energy Cannon . | . . . . . . . Ballistic Gun 4 | 1 1 . . . 1 1 Ballistic Cannon 1 | . . . . . . 1 Launcher 7 | . . . . . 4 3 Special Weapon 1 | . . . . . . 1 Impact Weapon . | . . . . . . . Slashing Weapon 1 | . . . . . 1 . Piercing Weapon . | . . . . . . . Special Melee Weapon . | . . . . . . . Unidentified Prototypes 5 | . . . . . 1 4 Parts Lost 21 | . . 1 . 4 11 5 Power 4 | . . 1 . . 2 1 Propulsion 5 | . . . . 1 3 1 Utility 2 | . . . . 1 . 1 Weapon 10 | . . . . 2 6 2 Highest Loss Streak 5 | . . 1 . 3 5 3 Average Slot Usage (%) 91 | . 91 99 99 81 77 88 Engine 13 | . 14 13 14 14 9 15 Treads 14 | . . . 23 10 6 14 Leg 3 | . . . . 16 7 2 Wheel 5 | . 28 28 4 . . . Device 4 | . 11 14 2 . 3 7 Storage 7 | . . . 11 13 9 . Processor 8 | . 4 14 14 14 4 . Protection 5 | . 3 . . . 10 15 Energy Gun 15 | . 13 14 25 12 7 5 Ballistic Gun 4 | . 14 14 2 . 1 6 Launcher 5 | . . . . . 14 16 Naked Turns . | . . . . . . . Heaviest Build 64 | 6 11 10 11 11 64 63 Greatest Support 40 | 20 20 20 40 40 40 40 Greatest Overweight (x) 20 | 1 . . . . 20 2 Average Overweight (x) . | . . . . . 1 . Largest Inventory Capacity 4 | 4 4 4 4 4 4 4 Average Capacity 4 | 4 4 4 4 4 4 4 Most Carried 4 | 3 4 4 4 4 4 4 Average Carried 3 | . 3 4 3 4 3 3 Final Capacity 4 | . . . . . . 4 Final Carried 3 | . . . . . . 3 Class Distribution -------------------- 71% | Mutant 12% | Tank 8% | Scavenger-Mutant 4% | Scavenger-Tank Dominant Class ---------------- Mutant | -10/Materials Mutant | -10/Mines Mutant | -10/Exiles Scavenger-Mutant | -9/Mines Tank | -8/Materials Mutant | -8/Storage Resources | -11 -10 -10 -10 -9 -8 -8 ----------- Run | Scr Mat Min Exi Min Mat Sto Matter Collected 1029 | 234 80 29 . 49 240 397 Remotely . | . . . . . . . Salvage Created 1465 | . 18 31 . 144 413 859 Parts 98 | . 2 5 . 5 22 64 Haulers Intercepted . | . . . . . . . Recyclers Shooed . | . . . . . . . Parts Field Recycled . | . . . . . . . Retrieved Matter . | . . . . . . . Parts Self-Destructed . | . . . . . . . Prevented . | . . . . . . . Kills | -11 -10 -10 -10 -9 -8 -8 ------- Run | Scr Mat Min Exi Min Mat Sto Combat Hostiles Destroyed 31 | . . 2 . 3 7 19 Melee 4 | . . . . 2 2 . Guns 12 | . . 2 . 1 2 7 Cannons 3 | . . . . . . 3 AOE 12 | . . . . . 3 9 Classes Destroyed 9 | . 1 1 . 1 2 4 Worker 2 | . . . . . . 2 Builder 3 | . . . . . 1 2 Recycler 1 | . . . . . . 1 Operator 1 | . . . . . . 1 Watcher 4 | . 1 . . . 1 2 Swarmer 11 | . . 2 . . 2 7 Grunt 10 | . . . . 3 2 5 Duelist 2 | . . . . . . 2 Sentry 8 | . . . . . 3 5 Best Kill Streak 12 | . 1 2 . 2 4 12 Combat Bots Only 9 | . . 2 . 2 2 9 Max Kills in Single Turn 5 | . 1 1 . 1 1 5 Gunslinging . | . . . . . . . Exploded 5 | . . . . . 1 5 Melee 1 | . . . . 1 1 . Uniques/NPCs Destroyed . | . . . . . . . Combat | -11 -10 -10 -10 -9 -8 -8 -------- Run | Scr Mat Min Exi Min Mat Sto Damage Taken 3365 | . . 130 . 606 1319 1310 Core 715 | . . 8 . 147 381 179 Absorbed by Shields . | . . . . . . . Core Remaining (%) 69 | 100 . . . 38 . . Volleys Fired 91 | . 3 3 . 19 18 48 Largest 4 | . 2 2 . 2 4 4 Hottest 194 | . 70 70 . 100 156 194 Shots Fired 169 | . 6 6 . 24 50 83 Gun 121 | . 6 6 . 24 36 49 Cannon 17 | . . . . . . 17 Launcher 31 | . . . . . 14 17 Special . | . . . . . . . Kinetic 56 | . 3 3 . . . 50 Thermal 46 | . 3 3 . 24 . 16 Explosive . | . . . . . . . Electromagnetic 67 | . . . . . 50 17 Robot Hit Streak 13 | . 2 4 . 13 10 8 Robot Miss Streak 6 | . 3 1 . 2 3 6 Penetration Max . | . . . . . . . Secondary Targets 2 | . . 1 . . . 1 Max Gunslinging Chain 1 | . . 1 . . . 1 Shots Hit Robots 97 | . 2 4 . 19 24 48 Core Hits 72 | . 1 2 . 14 11 44 Critical Hits 1 | . . . . . . 1 Critical Kills . | . . . . . . . Critical Parts Destroyed 1 | . . . . . . 1 Melee Attacks 3 | . . . . . 3 . Impact . | . . . . . . . Slashing 3 | . . . . . 3 . Piercing . | . . . . . . . Sneak Attacks . | . . . . . . . Combat Hostiles . | . . . . . . . Follow-up Attacks . | . . . . . . . Damage Inflicted 2778 | 1 23 66 . 244 695 1749 Guns 1075 | . 23 62 . 220 283 487 Cannons 200 | . . . . . . 200 Explosions 1380 | . . . . . 325 1055 Melee 87 | . . . . . 87 . Ramming 36 | 1 . 4 . 24 . 7 Kinetic 468 | . 11 25 . . . 432 Thermal 911 | . 12 37 . 220 242 400 Explosive 15 | . . . . . . 15 Electromagnetic 1261 | . . . . . 366 895 Impact . | . . . . . . . Slashing 87 | . . . . . 87 . Piercing . | . . . . . . . Highest Corruption 1 | . . . . . 1 1 Average Corruption 1 | . . . . . 1 1 Corruption Purged . | . . . . . . . Effects 4 | . . . . . 1 3 Energy Discharges 1 | . . . . . . 1 Data Loss (minor) 2 | . . . . . 1 1 Targeting Errors 1 | . . . . . . 1 Overload Shots . | . . . . . . . Overflow Damage 88 | . . . . . 29 59 Projectiles . | . . . . . . . Explosions 88 | . . . . . 29 59 Melee . | . . . . . . . Knockbacks 4 | . . . . . . 4 Impact . | . . . . . . . Kinetic 4 | . . . . . . 4 Secondary . | . . . . . . . Self-Inflicted Damage 119 | . . 2 . . 74 43 Shots 6 | . . . . . 4 2 Rammed 20 | 1 . 1 . 18 . . Targets Rammed 22 | 1 . 1 . 19 . 1 Kicked . | . . . . . . . Crushed 2 | . . . . 1 . 1 Highest Temperature 507 | . 54 33 . 229 507 487 Average Temperature 133 | . 27 16 . 106 143 150 Received Heat Transfer 1224 | . . 39 . 339 468 378 Effects 15 | . . . . . 3 12 Shutdowns 3 | . . . . . 1 2 Energy Bleed 2 | . . . . . 1 1 Interference 6 | . . . . . . 6 Damage (minor) 1 | . . . . . 1 . Damage (major) 3 | . . . . . . 3 Siege Activations . | . . . . . . . Robots Corrupted 1 | . . . . . . 1 Combat Hostiles . | . . . . . . . Parts Fried 11 | . . . . . 4 7 Impact Corruptions . | . . . . . . . Robots Melted . | . . . . . . . Combat Hostiles . | . . . . . . . Parts Melted 3 | . . . . 1 . 2 Heat Transferred 1720 | . 37 111 . 654 250 668 Parts Sabotaged . | . . . . . . . Parts Stolen . | . . . . . . . Parts Stripped . | . . . . . . . Power Chain Reactions 7 | . . . . . 2 5 Missiles Intercepted . | . . . . . . . Alert | -11 -10 -10 -10 -9 -8 -8 ------- Run | Scr Mat Min Exi Min Mat Sto Peak Influence 563 | . 20 50 . 50 246 563 Average Influence 118 | . 11 25 . 33 106 254 Maximum Alert Level 2 | . . . . . 1 2 Low Security (%) 80 | . . . . . . . Level 1 7 | . . . . . . . Level 2 12 | . . . . . . . Level 3 . | . . . . . . . Level 4 . | . . . . . . . Level 5 . | . . . . . . . High Security . | . . . . . . . Max Security . | . . . . . . . Squads Dispatched 5 | . 1 . . . 1 3 Investigation 3 | . 1 . . . 1 1 Extermination . | . . . . . . . Reinforcement 2 | . . . . . . 2 Assault . | . . . . . . . Garrison . | . . . . . . . Intercept . | . . . . . . . Construction Impeded . | . . . . . . . Haulers Reinforced . | . . . . . . . Stealth | -11 -10 -10 -10 -9 -8 -8 --------- Run | Scr Mat Min Exi Min Mat Sto Distress Signals 4 | . 1 . . . 1 2 Communications Jammed . | . . . . . . . Distress Signals . | . . . . . . . Times Spotted 52 | . 1 7 . 6 13 25 Peak Tracking Total 8 | . 1 5 . 3 7 8 Tactical Retreats 3 | . . . . . 2 1 Traps | -11 -10 -10 -10 -9 -8 -8 ------- Run | Scr Mat Min Exi Min Mat Sto Traps Triggered 3 | . 1 . . . 1 1 Indirectly . | . . . . . . . Trap Hack Attempts . | . . . . . . . Triggered . | . . . . . . . Disarmed . | . . . . . . . Reprogrammed . | . . . . . . . Reused . | . . . . . . . Traps Extracted . | . . . . . . . Installed . | . . . . . . . Triggered . | . . . . . . . Machines | -11 -10 -10 -10 -9 -8 -8 ---------- Run | Scr Mat Min Exi Min Mat Sto Machines Disabled 7 | . . . . . 2 5 Max in Single Turn 1 | . . . . . 1 1 Machines Sabotaged . | . . . . . . . Garrisons Compromised . | . . . . . . . Overloaded Fab Kills . | . . . . . . . Fab Network Shutdowns . | . . . . . . . Hacking | -11 -10 -10 -10 -9 -8 -8 --------- Run | Scr Mat Min Exi Min Mat Sto Machines Accessed 6 | . 1 . 4 . 1 . Terminals 2 | . 1 . . . 1 . Fabricators . | . . . . . . . Repair Stations . | . . . . . . . Recycling Units . | . . . . . . . Scanalyzers . | . . . . . . . Garrison Access . | . . . . . . . Total Hacks 57 | . 6 . 48 . 3 . Successful 55 | . 4 . 48 . 3 . Failed 2 | . 2 . . . . . Catastrophic . | . . . . . . . Database Lockouts . | . . . . . . . Manual 1 | . 1 . . . . . Terminals 9 | . 6 . . . 3 . Fabricators . | . . . . . . . Repair Stations . | . . . . . . . Recycling Units . | . . . . . . . Scanalyzers . | . . . . . . . Garrison Access . | . . . . . . . Terminal Hacks 55 | . 4 . 48 . 3 . Record 49 | . 1 . 48 . . . Prototype ID Bank 2 | . 1 . . . 1 . Branch Access Points 1 | . . . . . 1 . Recall Investigation 1 | . 1 . . . . . Hauler Manifests 1 | . . . . . 1 . Registered Components 1 | . 1 . . . . . Fabricator Hacks . | . . . . . . . Repair Station Hacks . | . . . . . . . Recycling Unit Hacks . | . . . . . . . Scanalyzer . | . . . . . . . Garrison Access Hacks . | . . . . . . . Unauthorized Hacks . | . . . . . . . Terminals . | . . . . . . . Fabricators . | . . . . . . . Repair Stations . | . . . . . . . Recycling Units . | . . . . . . . Scanalyzers . | . . . . . . . Garrison Access . | . . . . . . . Data Cores Recovered . | . . . . . . . Used . | . . . . . . . Hacking Detections 1 | . 1 . . . . . Full Trace Events . | . . . . . . . Feedback Events . | . . . . . . . Feedback Blocked . | . . . . . . . Robot Schematics Acquired . | . . . . . . . Robots Built . | . . . . . . . Matter . | . . . . . . . Time . | . . . . . . . Total Robot Build Rating . | . . . . . . . Part Schematics Acquired . | . . . . . . . Parts Built . | . . . . . . . Matter . | . . . . . . . Time . | . . . . . . . Total Part Build Rating . | . . . . . . . Parts Repaired . | . . . . . . . Time . | . . . . . . . Parts Recycled . | . . . . . . . Recycled Matter . | . . . . . . . Retrieved Matter . | . . . . . . . Retrieved Components . | . . . . . . . Parts Scanalyzed . | . . . . . . . Part Schematics Acquired . | . . . . . . . Parts Damaged . | . . . . . . . Bothacking | -11 -10 -10 -10 -9 -8 -8 ------------ Run | Scr Mat Min Exi Min Mat Sto Used RIF Installer . | . . . . . . . Robots Hacked . | . . . . . . . Non-combat . | . . . . . . . Combat . | . . . . . . . Robot Hacks Applied . | . . . . . . . Relay Couplers Released . | . . . . . . . Robots Rewired . | . . . . . . . Allies Hacked . | . . . . . . . Hacks Repelled . | . . . . . . . Allies | -11 -10 -10 -10 -9 -8 -8 -------- Run | Scr Mat Min Exi Min Mat Sto Total Allies . | . . . . . . . Largest Group . | . . . . . . . Highest-Rated Group . | . . . . . . . Highest-Rated Ally . | . . . . . . . Total Orders . | . . . . . . . Ally Attacks . | . . . . . . . Total Damage . | . . . . . . . Kills . | . . . . . . . Allies Corrupted . | . . . . . . . Allies Melted . | . . . . . . . Intel | -11 -10 -10 -10 -9 -8 -8 ------- Run | Scr Mat Min Exi Min Mat Sto Robot Analysis Total . | . . . . . . . Derelict Logs Recovered . | . . . . . . . Drone Launches . | . . . . . . . Drone Recoveries . | . . . . . . . Exploration | -11 -10 -10 -10 -9 -8 -8 ------------- Run | Scr Mat Min Exi Min Mat Sto Turns Passed 2870 | 74 180 177 1175 208 549 507 Spaces Moved 1856 | 90 197 158 852 97 271 191 Core 86 | 52 . . . . 34 . Treads 859 | . . . 600 14 93 152 Legs 266 | . . . . 83 144 39 Wheels 645 | 38 197 158 252 . . . Hover . | . . . . . . . Flight . | . . . . . . . Fastest Speed 50 | 50 80 80 80 120 100 150 Average Speed 129 | 69 80 80 136 125 159 174 Slowest Speed 1050 | 100 80 80 160 160 1050 200 Overloaded Moves . | . . . . . . . Propulsion Burnouts . | . . . . . . . Robots Hopped . | . . . . . . . Cave-ins Triggered . | . . . . . . . Exploration Rate (%) 33 | 4 30 33 93 21 19 32 Regions Visited 6 Branch Regions 4 Pre-discovered Areas 1 | . . . 1 . . . Known Exits Taken 1 | . . . . . 1 . Unknown Exits Taken 5 | 1 1 1 1 1 . . Scrap Searched . | . . . . . . . Spaces Dug . | . . . . . . . Terrain Destroyed 60 | . . . . . 29 31 Melee . | . . . . . . . Projectile . | . . . . . . . AOE 60 | . . . . . 29 31 Actions | -11 -10 -10 -10 -9 -8 -8 --------- Run | Scr Mat Min Exi Min Mat Sto Total 2143 | 98 213 201 868 146 337 280 Wait 49 | . . 35 1 6 . 7 Move 1850 | 89 196 157 851 96 270 191 Hop . | . . . . . . . Pick Up 11 | 3 2 . 4 . 2 . Fast Attach 62 | 5 6 3 2 4 26 16 Attach 7 | . . . 3 . 2 2 Detach 7 | . 1 . 1 . 4 1 Swap 2 | . . . . . 1 1 Drop 39 | . 5 2 6 2 11 13 Fire 91 | . 3 3 . 19 18 48 Melee 3 | . . . . . 3 . Ram 2 | 1 . 1 . . . . Kick . | . . . . . . . Crush 20 | . . . . 19 . 1 Escape Stasis . | . . . . . . . Rewire . | . . . . . . . Trap . | . . . . . . . Miscellaneous . | . . . . . . . Route ------- -11/Scrapyard -10/Materials -10/Mines (discovered 2 exits: [*Mat] / *Exi) -10/Exiles (discovered 2 exits: [*Min x2]) -9/Mines -8/Materials (discovered 2 exits: *Sto x2) -8/Storage History --------- Turn | Location | Event 5 | -11/Scrapyard | Discovered new exit (range 15) 75 | -11/Scrapyard | Entered Materials 224 | -10/Materials | Met 8R-AWN 227 | -10/Materials | Discovered new exit (range 18) 255 | -10/Materials | Entered Mines 256 | -10/Mines | Followed 8R-AWN into the Mines 257 | -10/Mines | Discovered new exit (range 15) 300 | -10/Mines | Build established: Mutant 425 | -10/Mines | Discovered new exit (range 5) 432 | -10/Mines | Entered Exiles 459 | -10/Exiles | Discovered new exit (range 16) 467 | -10/Exiles | Welcomed by 8R-AWN 483 | -10/Exiles | Met EX-HEX 512 | -10/Exiles | Met EX-BIN 595 | -10/Exiles | Met EX-DEC 604 | -10/Exiles | Learned location of Zion (-7) 690 | -10/Exiles | Discovered new exit (range 15) 829 | -10/Exiles | Visited The Gauntlet 1156 | -10/Exiles | Learned about 8R-AWN's background 1607 | -10/Exiles | Entered Mines 1682 | -9/Mines | Core integrity fell below 50% 1704 | -9/Mines | Lost 3 parts (1n2w) 1729 | -9/Mines | Discovered new exit (range 16) 1815 | -9/Mines | Entered Materials 1815 | -8/Materials | Evolved 4 slots: Power x1, Utility x1, Weapon x2 1961 | -8/Materials | Lost 5 parts (2p1n2w) 2005 | -8/Materials | Core integrity fell below 50% 2006 | -8/Materials | Identified exit to Storage 2013 | -8/Materials | Lost 4 parts (1n3w) 2364 | -8/Materials | Entered Storage 2377 | -8/Storage | Build established: Tank 2519 | -8/Storage | Core integrity fell below 20% 2638 | -8/Storage | Destroyed 9 combat bots 2827 | -8/Storage | Lost 3 parts (1n2w) 2871 | -8/Storage | Destroyed by Y-45 Defender with Beam Rifle Last Messages --------------- 02819_ U-05 Engineer builds a Wall. 02820_ K-01 Serf collects debris. 02824_ U-05 Engineer lays Concrete. 02825_ U-05 Engineer builds a Wall. 02825_ K-01 Serf collects debris. 02829_ U-05 Engineer lays Concrete. 02831_ Acquired 15 matter. 02831_ U-05 Engineer lays Concrete. 02832_ K-01 Serf collects debris. 02833_ U-05 Engineer lays Concrete. 02834_ K-01 Serf collects debris. 02836_ U-05 Engineer lays Concrete. 02837_ K-01 Serf collects debris. 02838_ U-05 Engineer lays Concrete. 02840_ K-01 Serf collects debris. 02842_ U-05 Engineer builds a Wall. 02844_ K-01 Serf collects debris. 02853_ K-01 Serf cleans the Compression Vault. 02867_ Acquired Plasma Cutter. 02869_ Transport Mainframe disabled. Map ----- +----------------------------------------------------+ | | | ?????????????????????????????????????????????????? | | ?????????????????????????????????????????????????? | | ?????????????????????????????????????????????????? | | ?????????????????????????????????????????????????? | | ?????????????????????????????????????????????????? | | ?????????????????????????????????????????????????? | | ?????????????????????????????????????????????????? | | ?????????????????????????????????????????????????? | | ?????????????????????????????????????????????????? | | ?????????????????????????????????????????????????? | | ?????????????????????????????????????????????????? | | ?????????????????????????????????????????????????? | | ?????????????????????????????????????????????????? | | ?????????????????????????????????????????????????? | | ???????????????????????????????#?????????????????? | | ???????????##########?######## #?????????????????? | | ???????????# #?# #?????????????????? | | ???????????# """ #?# ###???????????????? | | ???????????# """ ### g ""????????????????? | | ???????????# """ / + """" ""????????????????? | | ??????????## ###gY"""" T"#???????????????? | | ??????????# # #g """ ""#???????????????? | | ??????????## # """" ""#???????????????? | | ???????????# # a #?????????????????? | | #??????????# # @ +?????????????????? | | ######+#########+## # ####+#####?????????????????? | | =%[ %= ????????????????????? | | = [*== ???????????????????? | | =!! %% ??????????????????? | | #####/######## ##########%#?????????????????? | | # ??????## ##????????? #?????????????????? | | # ?????? #???????????#?????????????????? | | # """ """ #????? #?????????????????????????????? | | # """ """ #??????##?????????????????????????????? | | # "" """ #?????????????????????????????????????? | | #?????????????????????????????????????? | | #?????????????????????????????????????? | | #?????????????????????????????????????? | | %## #######?????????????????????????????????????? | | = ###???????????????????????????????????????????? | | [ ##?????????????????????????????????????????????? | | !##??????????????????????????????????????????????? | | *T#??????????????????????????????????????????????? | | ##??????????????????????????????????????????????? | | ##########??????????????????????????????????????? | | # #??????????????????????????????????????? | | # """ #??????????????????????????????????????? | | # """ #??????????????????????????????????????? | | # """ #??????????????????????????????????????? | +----------------------------------------------------+ Best States ------------- Heat Dissipation 31 Energy Generation 23 Energy Capacity 710 Matter Stores 300 Matter Capacity 300 Sight Range 18 Robot Scan Range 10 Terrain Scan Density 10 Armor Coverage 375 Resistance: KI 30 Core Shielding 20 Evasion (%) 50 Recoil Reduction 2 Energy Filtering 30 Item Schematics ----------------- None Robot Schematics ------------------ None Fabricated ------------ Nothing Alien Tech Used ----------------- None Achievements -------------- None Challenges ------------ None Game ------ Seed InertialActuatorRailgun Manual? 0 Play Time 00:45:24 Cumulative 19.7 hours Start 2019.10.21 @ 23:44:15 End 2019.10.22 @ 00:28:30 Sessions 1 Manual Loads 0 Difficulty Rogue Special Mode None Game No. 48 Rogue 48 Adventurer 0 Explorer 0 Win Type - Total 0 Types 0/0/0/0/0/0/0 Lore% 13 Gallery% 31 Achievement% 21 Wizard Run 0 Options --------- ASCII 1 Keyboard 1 Movement Numpad Keybinds 0 Fullscreen 2 Font 18/TerminusBold Map View 76x50 Tactical HUD 1 Map Filters NONE Filters NONE Steam 1 RUN: a10978cd-2297-4f1d-af97-c223fdfd3fec